bitfinex-derivatives/quotes_BNBF0:USTF0_20250521
["timestamp","ask_amount","ask_price","bid_price","bid_amount"]
[1747788621892,1.52439052,650.98,650.55,0.58590107]
[1747788622093,1.52439052,650.98,650.56,0.58590107]
[1747788622293,1.52439052,650.98,650.57,0.58590107]
[1747788622494,1.52439052,650.98,650.58,1.36044054]
[1747788622695,1.52439052,650.98,650.59,0.58590107]
[1747788622888,1.52439052,650.98,650.6,0.58590107]
[1747788623093,1.52439052,650.98,650.61,0.58590107]
[1747788623392,1.52439052,650.98,650.62,0.58590107]
[1747788623593,1.52439052,650.98,650.43,0.958]
[1747788623790,2.28658578,651.21,650.44,0.58573518]
[1747788624089,2.28658578,651.21,650.45,0.58573518]
[1747788624289,2.28658578,651.21,650.46,0.58573518]
[1747788624489,2.28658578,651.21,650.47,0.58573518]
[1747788624693,2.28658578,651.21,650.48,1.35987908]
[1747788624889,2.28658578,651.21,650.49,0.58573518]
[1747788625094,2.28658578,651.21,650.5,0.58573518]
[1747788625293,2.28658578,651.21,650.51,1.35987908]
[1747788625494,2.28658578,651.21,650.52,0.58573518]
[1747788625692,2.28658578,651.21,650.53,0.58573518]
[1747788625897,2.28658578,651.21,650.54,0.58573518]
[1747788626094,2.28658578,651.21,650.55,0.58573518]
[1747788626293,2.28658578,651.21,650.56,0.58573518]
[1747788626598,2.28658578,651.21,650.57,1.35987908]
[1747788626798,2.28658578,651.21,650.58,0.58573518]
[1747788626997,2.28658578,651.21,650.59,0.58573518]
[1747788627300,2.28658578,651.11,650.6,0.58573518]
[1747788627598,2.28658578,651.11,650.61,0.58573518]
[1747788627799,2.28658578,651.11,650.27,0.25810844]
[1747788628008,2.28658578,651.11,650.28,1.35982493]
[1747788628200,2.28658578,651.11,650.29,0.58580336]
[1747788628400,2.28658578,651.11,650.3,1.35982493]
[1747788628594,2.28658578,651.11,650.31,0.89324777]
[1747788628796,2.28658578,651.11,650.32,1.35982493]
[1747788628994,2.28658578,651.11,650.33,0.58580336]
[1747788629198,2.28658578,651.11,650.34,1.35982493]
[1747788629397,2.28658578,651.11,650.35,0.58580336]
[1747788629595,2.28658578,651.11,650.36,1.35982493]
[1747788629800,2.28658578,651.11,650.37,0.58580336]
[1747788629997,2.28658578,651.09,650.38,0.58580336]
[1747788630202,2.28658578,651.09,650.39,0.58580336]
[1747788630402,2.28658578,651.09,650.4,0.58580336]
[1747788630602,2.28658578,651.09,650.41,1.35982493]
[1747788630803,2.28658578,651.09,650.42,0.58580336]
[1747788630996,2.28658578,651.09,650.43,1.35982493]
[1747788631200,2.28658578,651.09,650.44,0.58571161]
[1747788631398,2.28658578,651.09,650.45,1.66717759]
[1747788631603,2.28658578,651.09,650.46,0.58571161]
[1747788631903,2.28658578,651.09,650.47,1.35973318]
[1747788632104,2.28658578,651.09,650.48,0.58571161]
[1747788632305,2.28658578,651.09,650.49,0.58571161]
[1747788632498,2.28658578,651.09,650.5,1.35973318]
[1747788632702,2.28658578,651.09,650.51,0.58571161]
[1747788632902,2.28658578,651.03,650.52,0.58571161]
[1747788633101,2.28658578,651.03,650.53,1.35973318]
[1747788633303,2.28658578,651.03,650.54,0.58571161]
[1747788633504,2.28658578,651.03,650.55,0.58571161]
[1747788633704,2.28658578,651.03,650.56,0.58571161]
[1747788633900,2.28658578,651.03,650.57,0.58571161]
[1747788634107,2.28658578,651.03,650.58,0.58571161]
[1747788634302,2.28658578,651.03,650.59,0.58571161]
[1747788634507,2.28658578,651.03,650.46,1.122]
[1747788634704,2.28658578,651.03,650.47,0.58613446]
[1747788635007,2.28658578,651.03,650.48,1.36097493]
[1747788635207,2.28658578,651.03,650.49,1.36097493]
[1747788635407,2.28658578,651.03,650.5,0.58613446]
[1747788635606,2.28658578,651.03,650.51,0.58613446]
[1747788635807,2.28658578,651.03,650.52,1.36097493]
[1747788636008,2.28658578,651.04,650.53,0.58613446]
[1747788636208,2.28658578,651.04,650.54,0.58613446]
[1747788636408,2.28658578,651.04,650.55,0.58613446]
[1747788636607,2.28658578,651.04,650.56,0.58613446]
[1747788636807,2.28658578,651.04,650.5,0.30744886]
[1747788637004,2.28658578,651.04,650.51,0.58613606]
[1747788637303,2.28658578,651.04,650.52,0.58613606]
[1747788637606,2.28658578,651.04,650.53,0.58613606]
[1747788637803,2.28658578,651.04,650.46,1.122]
[1747788638003,2.28658578,651.04,650.47,0.58626891]
[1747788638207,2.28658578,651.04,650.48,0.58626891]
[1747788638408,2.28658578,651.04,650.49,0.58626891]
[1747788638604,2.28658578,651.04,650.5,0.58626891]
[1747788638803,2.28658578,651.02,650.51,0.58626891]
[1747788639002,2.28658578,651.02,650.46,1.122]
[1747788639310,2.28658578,651.02,650.47,0.58623867]
[1747788639502,2.28658578,651.02,650.48,0.58623867]
[1747788639704,2.28658578,651.02,650.49,0.58623867]
[1747788640005,2.28658578,651.02,650.5,0.58623867]
[1747788640207,2.28658578,651.02,650.51,0.58623867]
[1747788640407,2.28658578,651.02,650.46,1.122]
[1747788641210,2.28658578,651.02,650.47,0.5862085]
[1747788641409,2.28658578,651.02,650.48,0.5862085]
[1747788641610,2.28658578,651.02,650.49,0.5862085]
[1747788641806,2.28658578,651.02,650.5,0.5862085]
[1747788642008,2.28658578,651.02,650.51,0.5862085]
[1747788642211,2.28658578,651.02,650.52,0.5862085]
[1747788642413,2.28658578,651.02,650.48,0.30747825]
[1747788642710,2.28658578,651.02,650.49,0.58609013]
[1747788642911,2.28658578,651.02,650.5,0.58609013]
[1747788643107,2.28658578,651.02,650.51,0.58609013]
[1747788643311,2.28658578,651.02,650.46,1.122]
[1747788643611,2.28658578,651.02,650.47,0.77470354]
[1747788644113,2.28658578,651.09,650.47,0.77470354]
[1747788644406,2.28658578,651.09,650.46,1.122]
[1747788645312,0.875,651.08,650.46,1.122]
[1747788646813,0.875,651.08,650.22,0.25810844]
[1747788647014,0.875,651.08,650.23,0.58593041]
[1747788647214,0.875,651.08,650.24,0.58593041]
[1747788647509,2.28658578,651.06,650.25,1.66797516]
[1747788647714,2.28658578,651.06,650.26,0.58593041]
[1747788647916,2.28658578,651.06,650.27,1.36048911]
[1747788648114,2.28658578,651.06,650.28,0.58593041]
[1747788648311,2.28658578,651.06,650.29,1.36048911]
[1747788648509,2.28658578,651.06,650.3,0.58593041]
[1747788648713,2.28658578,651.06,650.31,1.36048911]
[1747788648914,2.28658578,651.06,650.32,0.58593041]
[1747788649215,2.28658578,651.06,650.33,0.58593041]
[1747788649409,2.28658578,651.06,650.34,0.58593041]
[1747788649609,2.28658578,651.06,650.35,1.36048911]
[1747788649808,2.28658578,651.06,650.36,0.58593041]
[1747788650012,2.28658578,651.06,650.37,1.36048911]
[1747788650213,2.28658578,651.06,650.38,0.58593041]
[1747788650414,2.28658578,651.06,650.39,1.36048911]
[1747788650614,2.28658578,651.07,650.4,0.58593041]
[1747788650915,2.28658578,651.07,650.41,0.58593041]
[1747788651215,2.28658578,651.07,650.42,0.58593041]
[1747788651408,2.28658578,651.07,650.43,0.58593041]
[1747788651610,2.28658578,651.07,650.44,0.58593041]
[1747788651812,2.28658578,651.07,650.45,0.58593041]
[1747788652008,2.28658578,651.07,650.46,0.58593041]
[1747788652312,2.28658578,651.07,650.47,0.58593041]
[1747788652513,2.28658578,651.07,650.44,0.30748605]
[1747788652713,2.28658578,651.07,650.45,0.58575398]
[1747788652910,2.28658578,651.07,650.46,1.35967258]
[1747788653115,2.28658578,651.07,650.47,1.35967258]
[1747788653309,2.28658578,651.07,650.48,0.58573855]
[1747788653513,2.28658578,651.07,650.49,0.58573855]
[1747788653717,2.28658578,651.07,650.5,0.58573855]
[1747788654016,2.28658578,651.07,650.51,0.58573855]
[1747788654316,0.875,651.08,650.52,0.58571576]
[1747788654516,0.875,651.08,650.53,0.58571576]
[1747788654818,0.875,651.08,650.54,0.58571576]
[1747788655017,0.875,651.08,650.35,0.961]
[1747788655316,0.875,651.08,650.36,1.35920321]
[1747788655516,0.875,651.08,650.37,0.58572668]
[1747788655716,0.875,651.08,650.38,1.35920321]
[1747788655917,0.875,651.08,650.39,0.58572668]
[1747788656117,0.875,651.08,650.4,1.35920321]
[1747788656420,0.875,651.08,650.41,1.35920321]
[1747788656617,0.875,651.08,650.42,0.58572668]
[1747788656918,0.875,651.08,650.43,1.35920321]
[1747788657119,0.875,651.08,650.44,1.35920321]
[1747788657320,0.875,651.08,650.45,0.58572668]
[1747788657617,0.875,651.08,650.46,1.35920321]
[1747788657817,0.875,651.08,650.47,0.58572668]
[1747788658010,0.875,651.08,650.48,0.58572668]
[1747788658212,0.875,651.08,650.49,1.66666024]
[1747788658415,0.875,651.08,650.5,0.58572668]
[1747788658612,0.875,651.08,650.51,0.58572668]
[1747788658818,0.875,651.08,650.52,0.58572668]
[1747788659013,0.875,651.08,650.53,0.58572668]
[1747788659216,0.875,651.08,650.54,0.58572668]
[1747788659418,0.875,651.08,650.49,0.30745703]
[1747788659616,0.875,651.08,650.5,0.58569324]
[1747788659813,0.875,651.08,650.51,0.58569324]
[1747788660014,0.875,651.08,650.52,0.58569324]
[1747788660315,0.875,651.08,650.53,1.35909473]
[1747788660519,0.875,651.08,650.54,0.58569324]
[1747788660718,0.875,651.08,650.55,1.35909473]
[1747788661020,0.875,651.08,650.56,0.58569324]
[1747788661219,0.875,651.08,650.57,0.89315027]
[1747788661420,0.875,651.08,650.58,0.58569324]
[1747788661620,0.875,651.08,650.59,0.58569324]
[1747788661821,0.875,651.08,650.6,0.58569324]
[1747788662022,0.875,651.08,650.61,0.58569324]
[1747788662214,0.875,651.08,650.62,0.58569324]
[1747788662420,0.875,651.08,650.63,0.58569324]
[1747788662618,0.875,651.08,650.64,0.58569324]
[1747788662820,0.875,651.08,650.65,0.58569324]
[1747788663015,0.875,651.08,650.57,0.30745703]
[1747788663218,0.875,651.08,650.58,0.58558885]
[1747788663416,0.875,651.08,650.59,0.58558885]
[1747788663622,0.875,651.08,650.6,0.58558885]
[1747788663823,0.875,651.08,650.61,0.58558885]
[1747788664022,0.875,651.08,650.62,0.58558885]
[1747788664223,0.875,651.08,650.37,0.25810844]
[1747788664423,0.875,651.08,650.38,0.58550265]
[1747788664725,0.875,651.08,650.39,1.35818437]
[1747788665016,0.875,651.08,650.4,1.66559708]
[1747788665222,0.875,651.08,650.41,0.58550265]
[1747788665421,0.875,651.08,650.42,1.35818437]
[1747788665618,0.875,651.08,650.43,1.35818437]
[1747788665822,0.875,651.08,650.44,0.58568844]
[1747788666118,0.875,651.08,650.45,1.35837016]
[1747788666326,0.875,651.08,650.46,0.58568844]
[1747788666524,0.875,651.08,650.47,0.58568844]
[1747788666717,0.875,651.08,650.48,0.58568844]
[1747788666921,0.875,651.08,650.49,0.58568844]
[1747788667120,0.875,651.08,650.5,0.58568844]
[1747788667326,0.875,651.08,650.51,0.58568844]
[1747788667523,0.875,651.08,650.35,0.961]
[1747788667824,0.875,651.08,650.36,0.58577464]
[1747788668023,0.875,651.08,650.37,0.58577464]
[1747788668323,0.875,651.08,650.38,0.58577464]
[1747788668623,0.875,651.08,650.39,0.58577464]
[1747788668822,0.875,651.08,650.4,0.58577464]
[1747788669019,0.875,651.08,650.41,1.35925737]
[1747788669223,0.875,651.08,650.42,0.58577464]
[1747788669521,0.875,651.08,650.43,1.35925737]
[1747788669722,0.875,651.08,650.44,0.58577464]
[1747788669923,0.875,651.08,650.45,0.58577464]
[1747788670124,0.875,651.08,650.46,0.58577464]
[1747788670324,0.875,651.08,650.47,0.58577464]
[1747788670518,0.875,651.08,650.48,0.58577464]
[1747788670717,0.875,651.08,650.49,0.58577464]
[1747788670922,0.875,651.08,650.5,0.58577464]
[1747788671117,0.875,651.08,650.51,0.58577464]
[1747788671323,0.875,651.08,650.52,0.58577464]
[1747788671522,0.875,651.08,650.35,0.961]
[1747788671523,2.28658578,651.09,650.35,0.961]
[1747788671724,2.28658578,651.09,650.36,0.58594621]
[1747788671925,2.28658578,651.09,650.37,0.58594621]
[1747788672225,2.28658578,651.09,650.38,1.3597443]
[1747788672420,2.28658578,651.09,650.39,1.3597443]
[1747788672622,2.28658578,651.09,650.4,0.58594621]
[1747788672824,2.28658578,651.09,650.41,0.58600633]
[1747788673125,2.28658578,651.09,650.42,1.35980442]
[1747788673324,2.28658578,651.09,650.43,1.35980442]
[1747788673525,2.28658578,651.09,650.44,0.58600633]
[1747788673823,2.28658578,651.09,650.45,1.35980442]
[1747788674025,2.28658578,651.09,650.46,0.58600633]
[1747788674324,2.28658578,651.09,650.47,1.35980442]
[1747788674525,1.103,651.08,650.48,0.58600633]
[1747788674727,1.103,651.08,650.49,1.35980442]
[1747788674928,1.103,651.08,650.5,0.58600633]
[1747788675225,1.103,651.08,650.51,1.35980442]
[1747788675426,1.103,651.08,650.52,0.58600633]
[1747788675625,1.103,651.08,650.53,0.58600633]
[1747788675926,1.103,651.08,650.54,0.58600633]
[1747788676122,1.103,651.08,650.55,0.58617743]
[1747788676324,1.103,651.08,650.56,0.58617743]
[1747788676523,1.103,651.08,650.57,0.58617743]
[1747788676724,1.103,651.08,650.58,0.58617743]
[1747788677020,1.103,651.08,650.59,0.58617743]
[1747788677223,1.103,651.08,650.6,0.58617743]
[1747788677422,1.103,651.08,650.35,0.961]
[1747788677623,1.103,651.08,650.36,0.58625065]
[1747788677822,2.28658578,651.01,650.37,1.36061462]
[1747788678022,2.28658578,651.01,650.38,0.58625065]
[1747788678223,2.28658578,651.01,650.39,0.58625065]
[1747788678426,2.28658578,651.01,650.4,1.36061462]
[1747788678726,2.28658578,651.01,650.41,0.58625065]
[1747788678925,2.28658578,651.01,650.42,1.36061462]
[1747788679126,2.28658578,651.01,650.43,1.36061462]
[1747788679327,2.28658578,651.01,650.44,0.58625065]
[1747788679626,2.28658578,651.01,650.45,1.36061462]
[1747788679822,2.28658578,651.01,650.46,0.58625065]
[1747788680027,2.28658578,651.01,650.47,0.58625065]
[1747788680227,2.28658578,651.01,650.48,0.58625065]
[1747788680423,2.28658578,651.01,650.49,0.58625065]
[1747788680629,2.28658578,651.01,650.5,1.36061462]
[1747788680828,2.28658578,650.98,650.51,0.58625065]
[1747788681029,2.28658578,650.98,650.52,0.58625065]
[1747788681223,2.28658578,650.98,650.53,0.58625065]
[1747788681424,2.28658578,650.98,650.54,0.58625065]
[1747788681623,2.28658578,650.98,650.55,0.58625065]
[1747788681927,2.28658578,650.98,650.56,0.58625065]
[1747788682125,2.28658578,650.98,650.57,0.58625065]
[1747788682429,2.28658578,650.98,650.58,0.58636078]
[1747788682626,2.28658578,650.98,650.59,0.58636078]
[1747788682831,2.28658578,650.98,650.6,0.58636078]
[1747788683033,2.28658578,650.98,650.61,0.58636078]
[1747788683327,2.28658578,650.98,650.62,0.58636078]
[1747788683528,2.28658578,650.98,650.4,1.462]
[1747788683729,1.103,651.08,650.41,1.36099026]
[1747788683928,1.103,651.08,650.42,0.58629284]
[1747788684126,1.103,651.08,650.43,1.36099026]
[1747788684329,1.103,651.08,650.44,0.58629284]
[1747788684527,1.103,651.08,650.45,1.36099026]
[1747788684833,1.103,651.08,650.46,0.89372461]
[1747788685032,1.103,651.08,650.47,0.58629284]
[1747788685232,1.103,651.08,650.48,1.36099026]
[1747788685430,1.103,651.08,650.49,0.58629284]
[1747788685631,1.103,651.08,650.5,1.36099026]
[1747788685833,1.103,651.08,650.51,0.58629284]
[1747788686132,1.103,651.08,650.52,1.36099026]
[1747788686335,1.103,651.08,650.53,0.58629284]
[1747788686532,1.103,651.08,650.54,0.58629284]
[1747788686732,1.103,651.08,650.55,0.58629284]
[1747788686930,1.103,651.08,650.56,0.58629284]
[1747788687131,1.103,651.08,650.57,0.58629284]
[1747788687330,1.103,651.08,650.58,0.58629284]
[1747788687531,1.103,651.08,650.59,0.58629284]
[1747788687827,1.103,651.08,650.6,0.58635924]
[1747788688031,1.103,651.08,650.52,0.30743177]
[1747788688232,1.103,651.08,650.53,1.36126627]
[1747788688428,1.103,651.08,650.54,0.58635819]
[1747788688631,1.103,651.08,650.55,1.36126627]
[1747788688828,1.103,651.08,650.56,0.58635819]
[1747788689032,1.103,651.08,650.57,0.58635819]
[1747788689233,1.103,651.08,650.58,0.58635819]
[1747788689429,1.103,651.08,650.59,0.58635819]
[1747788689635,1.103,651.08,650.52,0.30743177]
[1747788689827,1.103,651.08,650.53,1.3612096]
[1747788690032,1.103,651.08,650.54,0.58633737]
[1747788690332,1.103,651.08,650.55,0.58633737]
[1747788690529,1.103,651.08,650.56,0.58633737]
[1747788690735,1.103,651.08,650.57,0.58633737]
[1747788690931,1.103,651.08,650.58,0.58633737]
[1747788691133,1.103,651.08,650.59,0.58633737]
[1747788691333,1.103,651.08,650.52,0.30743177]
[1747788691536,1.103,651.08,650.53,0.58632577]
[1747788691733,1.103,651.08,650.54,0.58632577]
[1747788691935,1.103,651.08,650.55,0.58631844]
[1747788692131,1.103,651.08,650.56,0.58631844]
[1747788692334,1.103,651.08,650.57,0.58631844]
[1747788692535,1.103,651.08,650.58,0.58631844]
[1747788692734,1.103,651.08,650.59,0.58631844]
[1747788692934,1.103,651.08,650.6,0.30743177]
[1747788694842,1.103,651.08,650.4,1.462]
[1747788695141,1.103,651.08,650.41,1.36117984]
[1747788695335,1.103,651.08,650.42,0.58632387]
[1747788695535,1.103,651.08,650.43,0.58632387]
[1747788695741,1.103,651.08,650.44,1.36117978]
[1747788695939,1.103,651.08,650.45,0.58632387]
[1747788696140,1.103,651.08,650.46,0.58632387]
[1747788696342,1.103,651.08,650.47,0.58632387]
[1747788696541,1.103,651.08,650.48,0.58632387]
[1747788696842,1.103,651.08,650.49,0.58632387]
[1747788697043,1.103,651.08,650.5,0.58616569]
[1747788697243,1.103,651.08,650.51,1.3610216]
[1747788697444,1.103,651.08,650.52,0.58616569]
[1747788697743,1.103,651.08,650.53,0.58616569]
[1747788698044,1.103,651.08,650.54,0.58616569]
[1747788698240,1.103,651.08,650.55,0.58616569]
[1747788698444,1.103,651.08,650.56,0.58616569]
[1747788698645,1.103,651.08,650.52,0.30745211]
[1747788698847,1.103,651.08,650.53,0.58618389]
[1747788699048,1.103,651.08,650.54,0.58618389]
[1747788699242,1.103,651.08,650.55,0.58618389]
[1747788699441,1.103,651.08,650.56,0.58618389]
[1747788699644,1.103,651.08,650.5,1.509]
[1747788699845,1.103,651.08,650.51,1.36113954]
[1747788700045,1.103,651.08,650.52,0.58620397]
[1747788700247,1.103,651.08,650.53,0.58620397]
[1747788700548,2.28658578,651.14,650.54,0.58620397]
[1747788700748,2.28658578,651.14,650.55,0.58620397]
[1747788700947,2.28658578,651.14,650.56,0.58620397]
[1747788701142,2.28658578,651.14,650.57,0.58620397]
[1747788701346,2.28658578,651.14,650.5,1.509]
[1747788701544,2.28658578,651.14,650.51,1.36118543]
[1747788701748,2.28658578,651.14,650.52,0.5862244]
[1747788701946,2.28658578,651.14,650.53,0.5862244]
[1747788702144,2.28658578,651.14,650.54,0.5862244]
[1747788702346,2.28658578,651.14,650.55,0.5862292]
[1747788702548,2.28658578,651.14,650.56,0.5862292]
[1747788702845,2.28658578,651.14,650.57,0.5862292]
[1747788703148,2.28658578,651.14,650.5,1.509]
[1747788703350,2.28658578,651.14,650.51,1.36121223]
[1747788703548,2.28658578,651.14,650.52,0.58624124]
[1747788703751,2.28658578,651.14,650.53,0.58624124]
[1747788703950,2.28658578,651.14,650.54,0.58624124]
[1747788704152,2.28658578,651.14,650.55,0.58626403]
[1747788704350,2.28658578,651.14,650.56,0.58626403]
[1747788704555,2.28658578,651.14,650.5,1.509]
[1747788704750,2.28658578,651.14,650.51,0.58629266]
[1747788704950,2.28658578,650.97,650.52,0.58629266]
[1747788705150,2.28658578,650.97,650.53,0.58629266]
[1747788705350,2.28658578,650.97,650.54,0.58629266]
[1747788705551,2.28658578,650.97,650.55,0.58629266]
[1747788705751,2.28658578,650.97,650.56,0.58629266]
[1747788705952,2.28658578,650.97,650.57,0.58629266]
[1747788706151,2.28658578,650.97,650.58,0.58629266]
[1747788706447,2.28658578,650.97,650.59,0.58629266]
[1747788706653,2.28658578,650.97,650.6,0.58629266]
[1747788706852,2.28658578,650.97,650.5,1.509]
[1747788707052,2.28658578,650.97,650.51,1.36142251]
[1747788707252,2.28658578,650.97,650.52,0.58644019]
[1747788707547,2.28658578,650.97,650.53,1.36147684]
[1747788707748,2.28658578,650.97,650.54,0.58644019]
[1747788707949,2.28658578,650.97,650.55,1.36147684]
[1747788708251,2.28658578,650.97,650.56,0.58644019]
[1747788708452,2.28658578,650.97,650.5,1.509]
[1747788708453,2.28658578,651.0,650.57,0.58644019]
[1747788708652,2.28658578,651.0,650.58,0.58644019]
[1747788708852,2.28658578,651.0,650.5,1.509]
[1747788709053,2.28658578,651.0,650.51,0.58653048]
[1747788709353,2.28658578,651.0,650.5,1.509]
[1747788709354,2.28658578,651.0,650.52,1.36162125]
[1747788709551,2.28658578,651.0,650.53,0.5865216]
[1747788709748,2.28658578,651.0,650.54,1.36162125]
[1747788709954,2.28658578,651.0,650.55,0.5865216]
[1747788710150,2.28658578,651.0,650.56,0.5865216]
[1747788710351,2.28658578,651.0,650.57,0.5865216]
[1747788710554,2.28658578,651.0,650.58,0.5865216]
[1747788710751,2.28658578,651.0,650.59,0.5865216]
[1747788710955,2.28658578,651.0,650.6,0.5865216]
[1747788711255,2.28658578,650.99,650.61,0.5865216]
[1747788711457,2.28658578,650.99,650.5,1.509]
[1747788711755,2.28658578,650.99,650.51,1.36187535]
[1747788711951,2.28658578,650.99,650.52,0.58662341]
[1747788712155,2.28658578,650.99,650.53,0.58662341]
[1747788712350,2.28658578,650.99,650.54,1.36187535]
[1747788712550,2.28658578,650.99,650.55,0.89406162]
[1747788712754,2.28658578,650.99,650.56,0.58662341]
[1747788712955,2.28658578,650.99,650.57,0.58663963]
[1747788713249,2.28658578,650.99,650.58,0.58663963]
[1747788713450,2.28658578,650.99,650.59,0.58663963]
[1747788713654,2.28658578,650.99,650.6,0.58663963]
[1747788713954,2.28658578,650.99,650.61,0.58663963]
[1747788714156,2.28658578,651.02,650.62,0.58663963]
[1747788714356,2.28658578,651.02,650.5,1.509]
[1747788714552,2.28658578,651.02,650.51,0.58666426]
[1747788714751,2.28658578,651.02,650.52,1.36196847]
[1747788714955,2.28658578,651.02,650.53,0.58666426]
[1747788715251,2.28658578,651.02,650.52,0.77530421]
[1747788715252,2.28658578,651.02,650.54,0.58666426]
[1747788715455,2.28658578,651.02,650.55,0.58666426]
[1747788715651,2.28658578,651.02,650.56,0.58666426]
[1747788715856,2.28658578,651.02,650.57,0.58666426]
[1747788716155,2.28658578,651.02,650.5,1.509]
[1747788716355,2.28658578,651.02,650.51,1.36201557]
[1747788716555,2.28658578,651.02,650.52,0.58668669]
[1747788716756,2.28658578,650.99,650.53,0.58668669]
[1747788716950,2.28658578,650.99,650.54,0.58668669]
[1747788717151,2.28658578,650.99,650.55,0.58668669]
[1747788717352,2.28658578,650.99,650.56,0.58668669]
[1747788717555,2.28658578,650.99,650.5,1.509]
[1747788717752,2.28658578,650.99,650.51,0.58668413]
[1747788717956,2.28658578,650.99,650.52,0.58668413]
[1747788718152,2.28658578,650.99,650.53,0.58668413]
[1747788718456,2.28658578,650.99,650.54,0.58668413]
[1747788718657,2.28658578,650.99,650.5,1.509]
[1747788718958,2.28658578,650.96,650.51,0.58668465]
[1747788719154,2.28658578,650.96,650.52,0.58668465]
[1747788719354,2.28658578,650.96,650.53,0.58668465]
[1747788719656,2.28658578,650.96,650.54,0.58668465]
[1747788719855,2.28658578,650.96,650.5,1.509]
[1747788720051,2.28658578,650.96,650.51,0.58662807]
[1747788720253,2.28658578,650.96,650.52,0.58662807]
[1747788720457,2.28658578,650.96,650.53,0.58662807]
[1747788720652,2.28658578,650.96,650.54,0.58662807]
[1747788720857,2.28658578,650.96,650.5,1.509]
[1747788721058,2.28658578,650.96,650.51,0.58662711]
[1747788721356,2.28658578,650.96,650.52,0.58662711]
[1747788721553,2.28658578,650.96,650.53,0.58662711]
[1747788721758,2.28658578,650.96,650.54,0.58662711]
[1747788721958,2.28658578,650.95,650.5,1.509]
[1747788722155,2.28658578,650.95,650.51,0.58660742]
[1747788722359,2.28658578,650.95,650.52,0.58660742]
[1747788722557,2.28658578,650.95,650.53,0.58660742]
[1747788722861,2.28658578,650.95,650.54,0.58663166]
[1747788723061,2.28658578,650.95,650.55,0.58663166]
[1747788723262,2.28658578,650.95,650.22,0.25810844]
[1747788723463,2.28658578,650.95,650.23,1.36221481]
[1747788723663,2.28658578,650.95,650.24,0.58663262]
[1747788723962,2.28658578,650.95,650.25,0.58663262]
[1747788724162,2.28658578,650.95,650.26,1.36221481]
[1747788724362,2.28658578,650.95,650.27,0.58663262]
[1747788724564,2.28658578,650.95,650.28,0.58663262]
[1747788724862,2.28658578,650.95,650.29,1.36221481]
[1747788725064,2.28658578,651.04,650.3,1.62032325]
[1747788725257,2.28658578,651.04,650.31,0.58663262]
[1747788725458,2.28658578,651.04,650.32,1.36221481]
[1747788725660,2.28658578,651.04,650.33,0.58663262]
[1747788725860,2.28658578,651.04,650.34,0.58663262]
[1747788726062,2.28658578,651.04,650.35,1.36221481]
[1747788726358,2.28658578,651.04,650.36,0.58663262]
[1747788726559,2.28658578,651.04,650.37,0.58663262]
[1747788726760,2.28658578,651.04,650.38,0.58663262]
[1747788726960,2.28658578,651.04,650.37,0.30746813]
[1747788726961,2.28658578,651.04,650.39,1.36221481]
[1747788727163,2.28658578,651.04,650.4,0.58663262]
[1747788727364,2.28658578,651.04,650.41,0.58663262]
[1747788727563,2.28658578,651.04,650.42,0.58663262]
[1747788727758,2.28658578,651.04,650.43,0.58663262]
[1747788727963,2.28658578,651.04,650.44,0.58663262]
[1747788728163,2.28658578,651.04,650.45,0.58663262]
[1747788728363,2.28658578,651.04,650.46,0.58663262]
[1747788728565,2.28658578,651.03,650.47,1.36221481]
[1747788728764,2.28658578,651.03,650.48,0.58663262]
[1747788729061,2.28658578,651.03,650.49,1.36221481]
[1747788729262,2.28658578,651.03,650.5,0.58663262]
[1747788729462,2.28658578,651.03,650.51,1.36221481]
[1747788729663,2.28658578,651.03,650.52,0.58663262]
[1747788729963,2.28658578,651.03,650.53,0.58663829]
[1747788730262,2.28658578,651.03,650.54,0.58663829]
[1747788730464,2.28658578,651.03,650.55,0.58663829]
[1747788730763,2.28658578,651.03,650.56,1.36222048]
[1747788730956,2.28658578,651.15,650.57,1.36222048]
[1747788731164,2.28658578,651.15,650.58,0.58663829]
[1747788731358,2.28658578,651.15,650.59,1.36222048]
[1747788731559,2.28658578,651.15,650.6,0.58677207]
[1747788731760,2.28658578,651.15,650.61,0.58677207]
[1747788731963,2.28658578,651.15,650.62,1.36235426]
[1747788732163,2.28658578,651.15,650.63,0.58677207]
[1747788732466,2.28658578,651.15,650.64,0.58677207]
[1747788732666,2.28658578,651.15,650.65,0.58677207]
[1747788732866,2.28658578,651.15,650.66,0.58677207]
[1747788733069,2.28658578,651.15,650.62,0.30746813]
[1747788733567,2.28658578,651.17,650.38,0.25810844]
[1747788733768,2.28658578,651.17,650.39,0.58672313]